Workbook

Sheet Model
A2: Model

Sheet Sequences
B1: TP Sequence | C1: Set temperature, pressure, fO2 conditions
A2: T1 | B2: 770
A3: T2 | B3: 770
A4: ΔT | B4: 1
A5: T unit | B5: 1
A6: P1 | B6: 175
A7: P2 | B7: 20
A8: ΔP | B8: 1
A9: P unit
A10: fO2 | B10: 0
B22: HP Sequence | C22: Set temperature, pressure, fO2 conditions above, ΔH below (always use unconstrained fO2)
A23: H1
A24: H2
A25: ΔH | B25: 0.25
A26: H unit | B26: kJ
B32: TV Sequence | C32: Set temperature, pressure, fO2 conditions above, ΔV below (always use unconstrained fO2)
A33: V1
A34: V2
A35: ΔV | B35: 0
A36: V unit | B36: cm3
B42: SP Sequence | C42: Set temperature, pressure, fO2 conditions above, ΔS below (always use unconstrained fO2)
A43: S1 | B43: 271.9324407
A44: S2 | B44: 271.9324407
A45: ΔS | B45: 0
A46: S unit | B46: J/K

Sheet Input
B1: System | D1: System | F1: Unit | H1: System | I1: =SUM(B2:B18) -> 105.7809118
A2: SiO2 | B2: 77.7 | D2: P | E2: 175 | H2: Liquid | I2: =Results!C2 -> 33.22924564
A3: TiO2 | B3: 0.08 | D3: T | E3: 757 | H3: Solids | I3: =SUM(Results!E2:Q2) -> 72.54166615
A4: Al2O3 | B4: 12.5 | D4: log fO2 | E4: -2.179540078
A5: Fe2O3 | B5: 0.2084874513
A6: Cr2O3 | H6: Phase | I6: Mass | J6: Formula
A7: FeO | B7: 0.4724243342 | H7: liquid | I7: 33.22924564 | J7: SiO2 0.73 TiO2 0.00 Al2O3 0.12 Fe2O3 0.00 FeO 0.01 MgO 0.00 CaO 0.00 Na2O 0.04 K2O 0.05 H2O 0.05
A8: MnO | H8: feldspar | I8: 35.45767165 | J8: K0.51Na0.48Ca0.02Al1.02Si2.98O8
A9: MgO | B9: 0.03 | H9: quartz | I9: 23.94116507 | J9: SiO2
A10: NiO | H10: feldspar | I10: 8.965752212 | J10: K0.15Na0.77Ca0.08Al1.08Si2.92O8
A11: CoO | H11: water | I11: 3.843340686 | J11: H2O
A12: CaO | B12: 0.43 | H12: spinel | I12: 0.3337365366 | J12: Fe''1.28Mg0.03Fe'''1.30Al0.07Cr0.00Ti0.31O4
A13: Na2O | B13: 3.99
A14: K2O | B14: 4.89 | H14: Potential Phase | I14: Affinity (kJ) | J14: Formula
A15: P2O5 | H15: orthopyroxene | I15: 0.3466716301 | J15: opx Na0.00Ca0.98Fe''-0.0Mg0.60Fe'''0.42Ti0.01Al0.44Si1.56O6
A16: H2O | B16: 5.47 | H16: clinopyroxene | I16: 1.005039177 | J16: cpx Na0.00Ca0.99Fe''-0.0Mg0.61Fe'''0.40Ti0.01Al0.42Si1.58O6
A17: CO2 | B17: 0.01 | H17: rhm-oxide | I17: 1.065086338 | J17: Mn0.03Fe''0.00Mg0.91Fe'''0.12Al0.00Ti0.94O3
A18: SO3 | H18: olivine | I18: 1.527563671 | J18: (Ca-0.0Mg-0.0Fe''-0.3Mn0.44Co0.44Ni0.44)2SiO4
A19: Cl2O-1 | H19: tridymite | I19: 2.146146847 | J19: SiO2
A20: F2O-1 | H20: cristobalite | I20: 2.210656202 | J20: SiO2
D21: Success: Equilibrate | H21: fayalite | I21: 3.717656641 | J21: Fe2SiO4
H22: biotite | I22: 8.497061214 | J22: K(Fe''1.00Mg0.00)3AlSi3O10(OH)2
D23: =INDEX(aux!P4:P7,aux!P3) -> rhyolite-MELTS_v1.0.x | H23: garnet | I23: 8.73813728 | J23: (Ca0.09Fe''0.91Mg0.00)3Al2Si3O12
H24: rutile | I24: 8.839359889 | J24: TiO2
H25: cummingtonite | I25: 11.05019782 | J25: (Fe''0.00Mg1.00)7Si8O22(OH)2
H26: sillimanite | I26: 14.47560222 | J26: Al2SiO5
H27: corundum | I27: 14.85985955 | J27: Al2O3
H28: sphene | I28: 18.12015665 | J28: CaTiSiO5
H29: ortho-oxide | I29: 20.09706866 | J29: Fe''0.02Mg0.00Fe'''1.97Ti1.02O5
H30: muscovite | I30: 25.12718689 | J30: KAl2Si3AlO10(OH)2
H31: perovskite | I31: 32.58903417 | J31: CaTiO3
H32: aenigmatite | I32: 36.65188681 | J32: Na2Fe5TiSi6O20
H33: hornblende | I33: 36.82716317 | J33: NaCa2Mg3.99Fe2+0.01Al1.00Fe3+0.00Al2Si6O22(OH)2
H34: nepheline | I34: 43.51090253 | J34: neph Na0.06K3.92Ca0.00[]0.02Al3.98Si4.02O16
H35: melilite | I35: 45.65568558 | J35: Na0.00Ca2.00Al0.69Mg0.05Fe0.60Si1.65O7
H36: alloy-solid | I36: 56.73726593 | J36: solid Fe1.00Ni0.00
H37: alloy-liquid | I37: 61.34164749 | J37: liquid Fe1.00Ni0.00
H38: aegirine | I38: 142.5242126 | J38: NaFeSi2O6

Sheet Results
B1: system | C1: liquid | D1: solids(+water) | E1: feldspar | F1: feldspar | G1: quartz | H1: spinel | I1: water
A2: mass (g) | B2: 105.7709118 | C2: 33.22924564 | D2: 72.54166615 | E2: 35.45767165 | F2: 8.965752212 | G2: 23.94116507 | H2: 0.3337365366 | I2: 3.843340686
A3: ρ (g/cm3) | B3: 2.059356402 | C3: 2.206263733 | D3: 1.998402439 | E3: 2.523064796 | F3: 2.559121728 | G3: 2.540698301 | H3: 4.929201247 | I3: 0.4153976816
A4: G (kJ) | B4: -1725.577495 | C4: -539.5349558 | D4: -1186.042539 | E4: -563.26931 | F4: -145.0956696 | G4: -391.3376964 | H4: -2.268118876 | I4: -84.07174458
A5: H (kJ) | B5: -1458.54022 | C5: -452.7145442 | D5: -1005.825676 | E5: -487.2082654 | F5: -125.6304762 | G5: -342.7773577 | H5: -1.656210318 | I5: -48.55336636
A6: S (J/K) | B6: 259.2238747 | C6: 84.27938808 | D6: 174.9444866 | E6: 73.83492172 | F6: 18.89549426 | G6: 47.13909497 | H6: 0.5939994743 | I6: 34.48097618
A7: Cp (J/K) | B7: 141.0945327 | C7: 44.39627786 | D7: 96.69825481 | E7: 42.3607108 | F7: 10.93030109 | G7: 27.74498072 | H7: 0.2958959003 | I7: 15.36636631
A8: V (cm3) | B8: 51.36114937 | C8: 15.0613207 | D8: 36.29982867 | E8: 14.05341302 | F8: 3.503448904 | G8: 9.423064934 | H8: 0.06770600751 | I8: 9.252195803
A9: α (1/K) | B9: 0.0003532799422 | C9: 0.0001408197334 | D9: 0.0004414327368 | E9: 2.906773548e-05 | F9: 3.138722159e-05 | G9: 0 | H9: 3.273088273e-05 | I9: 0.001675629499
A10: β (1/bar) | B10: 8.362993146e-05 | C10: 1.724972738e-05 | D10: 0.0001111720323 | E10: 1.807618122e-06 | F10: 1.827292105e-06 | G10: 1.238199309e-06 | H10: 3.773612519e-07 | I10: 0.0004314681184
A11: SiO2 | B11: =IF(Input!B2="",IF(OR(Input!A2="Fe2O3",Input!A2="FeO"),0,""),Input!B2/SUM(Input!B$2:B$20)*100) -> 73.45370605 | C11: 73.28400279 | D11: =IF(C11="","",IFERROR((B11*B$2-C11*C$2)/(B$2-C$2),0)) -> 73.53144222 | E11: 66.2610967 | F11: 65.9450696 | G11: 100
A12: TiO2 | B12: =IF(Input!B3="",IF(OR(Input!A3="Fe2O3",Input!A3="FeO"),0,""),Input!B3/SUM(Input!B$2:B$20)*100) -> 0.07562801138 | C12: 0.1291979362 | D12: =IF(C12="","",IFERROR((B12*B$2-C12*C$2)/(B$2-C$2),0)) -> 0.05108917344 | H12: 11.10711486
A13: Al2O3 | B13: =IF(Input!B4="",IF(OR(Input!A4="Fe2O3",Input!A4="FeO"),0,""),Input!B4/SUM(Input!B$2:B$20)*100) -> 11.81687678 | C13: 11.60313437 | D13: 11.91478601 | E13: 19.12659058 | F13: 20.71153943 | H13: 1.671075505
A14: Fe2O3 | B14: =IF(Input!B5="",IF(OR(Input!A5="Fe2O3",Input!A5="FeO"),0,""),Input!B5/SUM(Input!B$2:B$20)*100) -> 0.1970936417 | C14: 0.1665267487 | D14: 0.2110954541 | H14: 45.89005162
A15: Cr2O3 | B15: =IF(Input!B6="",IF(OR(Input!A6="Fe2O3",Input!A6="FeO"),0,""),Input!B6/SUM(Input!B$2:B$20)*100) -> 
A16: FeO | B16: =IF(Input!B7="",IF(OR(Input!A7="Fe2O3",Input!A7="FeO"),0,""),Input!B7/SUM(Input!B$2:B$20)*100) -> 0.4466064115 | C16: 1.012596672 | D16: 0.1873425926 | H16: 40.7345567
A17: MnO | B17: =IF(Input!B8="",IF(OR(Input!A8="Fe2O3",Input!A8="FeO"),0,""),Input!B8/SUM(Input!B$2:B$20)*100) -> 
A18: MgO | B18: =IF(Input!B9="",IF(OR(Input!A9="Fe2O3",Input!A9="FeO"),0,""),Input!B9/SUM(Input!B$2:B$20)*100) -> 0.02836050427 | C18: 0.08428395062 | D18: 0.002743585957 | H18: 0.5972013241
A19: NiO | B19: =IF(Input!B10="",IF(OR(Input!A10="Fe2O3",Input!A10="FeO"),0,""),Input!B10/SUM(Input!B$2:B$20)*100) -> 
A20: CoO | B20: =IF(Input!B11="",IF(OR(Input!A11="Fe2O3",Input!A11="FeO"),0,""),Input!B11/SUM(Input!B$2:B$20)*100) -> 
A21: CaO | B21: =IF(Input!B12="",IF(OR(Input!A12="Fe2O3",Input!A12="FeO"),0,""),Input!B12/SUM(Input!B$2:B$20)*100) -> 0.4065005612 | C21: 0.4955230641 | D21: 0.3657219194 | E21: 0.3185119981 | F21: 1.699851633
A22: Na2O | B22: =IF(Input!B13="",IF(OR(Input!A13="Fe2O3",Input!A13="FeO"),0,""),Input!B13/SUM(Input!B$2:B$20)*100) -> 3.771947067 | C22: 3.767591124 | D22: 3.773942399 | E22: 5.467067902 | F22: 8.917967912
A23: K2O | B23: =IF(Input!B14="",IF(OR(Input!A14="Fe2O3",Input!A14="FeO"),0,""),Input!B14/SUM(Input!B$2:B$20)*100) -> 4.622762195 | C23: 4.5618793 | D23: 4.650650894 | E23: 8.826732821 | F23: 2.725571431
A24: P2O5 | B24: =IF(Input!B15="",IF(OR(Input!A15="Fe2O3",Input!A15="FeO"),0,""),Input!B15/SUM(Input!B$2:B$20)*100) -> 
A25: H2O | B25: =IF(Input!B16="",IF(OR(Input!A16="Fe2O3",Input!A16="FeO"),0,""),Input!B16/SUM(Input!B$2:B$20)*100) -> 5.171065278 | C25: 4.895264044 | D25: 5.297401871 | I25: 100
A26: CO2 | B26: =IF(Input!B17="",IF(OR(Input!A17="Fe2O3",Input!A17="FeO"),0,""),Input!B17/SUM(Input!B$2:B$20)*100) -> 0.009453501422

Sheet Phases
A1: Phases (check to include) | E1: 1

Sheet Tools

Sheet Multiple_Comp (hidden)
B1: UNK-202-10 | C1: UNK-202-11 | D1: UNK-202-9 | E1: UNK-202-8 | F1: UNK-202-7 | G1: UNK-202-6 | H1: UNK-202-5 | I1: UNK-202-4 | J1: UNK-202-3 | K1: UNK-202-2 | L1: UNK-202-1
A2: SiO2 | B2: 75.34909091 | C2: 75.35727273 | D2: 75.454 | E2: 75.58 | F2: 75.39083333 | G2: 75.46083333 | H2: 75.245 | I2: 75.4825 | J2: 75.41777778 | K2: 75.44636364 | L2: 75.841
A3: TiO2 | B3: 0.26 | C3: 0.275 | D3: 0.265 | E3: 0.275 | F3: 0.265 | G3: 0.29 | H3: 0.26 | I3: 0.285 | J3: 0.335 | K3: 0.31 | L3: 0.285
A4: Al2O3 | B4: 13.32909091 | C4: 13.28272727 | D4: 13.304 | E4: 13.19888889 | F4: 13.35 | G4: 13.2825 | H4: 13.19166667 | I4: 13.325 | J4: 13.23333333 | K4: 13.31 | L4: 13.06
A5: Fe2O3
A6: Cr2O3
A7: FeO | B7: 1.946363636 | C7: 1.980909091 | D7: 1.935 | E7: 1.971111111 | F7: 1.898333333 | G7: 1.8475 | H7: 1.989166667 | I7: 1.995 | J7: 2.027777778 | K7: 2.013636364 | L7: 1.915
A8: MnO
A9: MgO | B9: 0.275 | C9: 0.27 | D9: 0.27 | E9: 0.265 | F9: 0.31 | G9: 0.275 | H9: 0.265 | I9: 0.285 | J9: 0.295 | K9: 0.275 | L9: 0.245
A10: NiO
A11: CoO
A12: CaO | B12: 1.490909091 | C12: 1.512727273 | D12: 1.491 | E12: 1.472222222 | F12: 1.554166667 | G12: 1.553333333 | H12: 1.5575 | I12: 1.499166667 | J12: 1.585555556 | K12: 1.554545455 | L12: 1.423
A13: Na2O | B13: 4.477272727 | C13: 4.517272727 | D13: 4.361 | E13: 4.414444444 | F13: 4.530833333 | G13: 4.473333333 | H13: 4.606666667 | I13: 4.495833333 | J13: 4.457777778 | K13: 4.236363636 | L13: 4.112
A14: K2O | B14: 2.958181818 | C14: 2.899090909 | D14: 2.941 | E14: 2.932222222 | F14: 2.896666667 | G14: 2.9175 | H14: 2.915833333 | I14: 2.883333333 | J14: 2.9 | K14: 2.916363636 | L14: 3.029
A15: P2O5
A16: H2O | B16: 10 | C16: 10 | D16: 10 | E16: 10 | F16: 10 | G16: 10 | H16: 10 | I16: 10 | J16: 10 | K16: 10 | L16: 10
A17: CO2
A18: SO3
A19: Cl2O-1
A20: F2O-1

Sheet aux
A1: Input P | B1: Input T | C1: Input fO2 | D1: Input constraint | F1: PT_seq P | G1: PT_seq T | H1: PT_seq fO2 | I1: PT_seq constraint | K1: aegirine | L1: TRUE | N1: SiO2 | P1: Model
A2: 1 | B2: 1 | C2: 2 | F2: 1 | G2: 1 | H2: 2 | K2: aenigmatite | L2: TRUE | N2: TiO2
A3: 1 | B3: 1 | C3: 2 | D3: FALSE | F3: 1 | G3: 1 | H3: 2 | I3: FALSE | K3: alloy-liquid | L3: TRUE | N3: Al2O3 | P3: 1
A4: MPa | B4: °C | C4: log10 | F4: MPa | G4: °C | H4: log10 | K4: alloy-solid | L4: TRUE | N4: Fe2O3 | P4: rhyolite-MELTS_v1.0.x
A5: bar | B5: K | C5: ΔNNO | F5: bar | G5: K | H5: ΔNNO | K5: amphibole | L5: FALSE | N5: Cr2O3 | P5: rhyolite-MELTS_v1.1.x
A6: kbar | C6: ΔQFM | F6: kbar | H6: ΔQFM | K6: apatite | L6: TRUE | N6: FeO | P6: rhyolite-MELTS_v1.2.x
C7: ΔHM | H7: ΔHM | K7: biotite | L7: TRUE | N7: MnO | P7: pMELTS_v5.6.1
C8: ΔIW | H8: ΔIW | K8: clinopyroxene | L8: TRUE | N8: MgO
K9: corundum | L9: TRUE | N9: NiO
K10: cristobalite | L10: TRUE | N10: CoO
K11: cummingtonite | L11: TRUE | N11: CaO
K12: fayalite | L12: TRUE | N12: Na2O
K13: feldspar | L13: TRUE | N13: K2O
K14: garnet | L14: TRUE | N14: P2O5
K15: hornblende | L15: TRUE | N15: H2O
K16: kalsilite | L16: TRUE | N16: CO2
K17: leucite | L17: FALSE | N17: SO3
K18: melilite | L18: TRUE | N18: Cl2O-1
K19: muscovite | L19: TRUE | N19: F2O-1
K20: nepheline | L20: TRUE
K21: olivine | L21: TRUE
K22: ortho-oxide | L22: TRUE
K23: orthopyroxene | L23: TRUE
K24: perovskite | L24: TRUE
K25: quartz | L25: TRUE
K26: rhm-oxide | L26: TRUE
K27: rutile | L27: TRUE
K28: sillimanite | L28: TRUE
K29: sphene | L29: TRUE
K30: spinel | L30: TRUE
K31: tridymite | L31: TRUE
K32: water | L32: TRUE
K33: whitlockite | L33: TRUE
K34: fluid | L34: TRUE
K35: calcite | L35: TRUE
K36: aragonite | L36: TRUE
K37: magnesite | L37: TRUE
K38: siderite | L38: TRUE
K39: dolomite | L39: TRUE
K40: spurrite | L40: TRUE
K41: tilleyite | L41: TRUE
K42: diamond | L42: TRUE
K43: graphite | L43: TRUE
